[Event "Alef Super Stars Blitz 2023"]
[Site "Almamsha"]
[Date "2023.12.06"]
[Round "8.1"]
[White "Salem, A.R. Saleh"]
[Black "Sjugirov, Sanan"]
[Result "1-0"]
[ECO "E56"]
[WhiteElo "2639"]
[BlackElo "2703"]
[Annotator "TA"]
[PlyCount "118"]
[EventDate "2023.11.27"]
[EventType "tourn"]
[EventCountry "UAE"]
[SourceTitle "playchess.com"]
[Source "ChessBase"]
[SourceQuality "1"]
[TimeControl "180+2"]

{[%evp 20,118,16,21,14,17,0,0,38,51,49,54,60,61,75,42,47,56,68,54,74,82,91,97,110,89,89,84,125,28,29,27,54,26,37,27,87,77,89,100,545,92,97,72,330,350,345,184,195,35,68,10,21,11,26,26,36,2,2,0,135,135,151,121,167,156,213,142,275,162,162,142,147,95,173,180,215,108,114,114,496,7,10,-8,-8,-8,0,0,-5,-9,0,0,0,0,8,8,81,77,427,379,375]} 1. d4 {[%emt 0:00:01]} Nf6 {[%emt 0:00:01]} 2. c4 {[%emt 0:00:00]} e6 {[%emt 0:00:01]} 3. Nf3 {[%emt 0:00:01]} d5 {[%emt 0:00:00]} 4. Nc3 {[%emt 0:00:01]} Bb4 {[%emt 0:00:01]} 5. e3 {[%emt 0:00:02]} O-O {[%emt 0:00:03]} 6. Bd3 {[%emt 0:00:01]} c5 {[%emt 0:00:11]} 7. O-O {[%emt 0:00:02]} dxc4 {[%emt 0:00:02]} 8. Bxc4 {[%emt 0:00:01]} Nc6 {[%emt 0:00:01]} 9. a3 {[%emt 0:00:04]} Ba5 {[%emt 0:00:01]} 10. Qd3 {[%emt 0:00:03]} a6 {[%emt 0:00:25]} 11. dxc5 {[%emt 0:00:11] With the idea b4.} Qxd3 {[%emt 0:00:09] E56: Nimzo-Indian: Rubinstein: Main Line: 7...Nc6.} 12. Bxd3 {[%emt 0:00:01] White wants to play b4.} Bxc3 {[%emt 0:00:01]} 13. bxc3 {[%emt 0:00:00]} Nd7 {[%emt 0:00:01] The position is equal.} 14. a4 {[%emt 0:00:05]} Nxc5 {[%emt 0:00:03]} 15. Bc2 {[%emt 0:00:02]} Re8 {[%emt 0:00:44]} 16. Ba3 $36 {[%emt 0:00:02][%mdl 2048] White fights for an advantage.} Nd7 {[%emt 0:00:01]} 17. Ng5 {[%emt 0:00:03]} Nf6 {[%emt 0:00:11]} 18. Rfd1 {[%emt 0:00:01] [#]} e5 $146 {[%emt 0:00:20]} ({Predecessor:} 18... Ne5 19. Ne4 Nd5 20. Nd6 Rd8 21. c4 Nf6 22. Rab1 Rb8 23. h3 Nc6 24. f4 Na5 {1-0 Fabris,A (2205)-Iotti,P (2300) Chianciano Terme op 1993}) 19. Rab1 {[%emt 0:00:10]} h6 {[%emt 0:00:16]} 20. Ne4 {[%emt 0:00:05]} Nxe4 {[%emt 0:00:01]} 21. Bxe4 {[%emt 0:00:01]} Na5 {[%emt 0:00:07]} 22. Bb4 {[%emt 0:00:27]} Nc4 {[%emt 0:00:01]} 23. Bc5 {[%emt 0:00:01]} Na5 {[%emt 0:00:19]} 24. Rb6 {[%emt 0:00:09] White is much more active. The black rooks are badly placed. Black is weak on the dark squares} (24. Bb6 $16 Nc4 25. h3) 24... Be6 $11 {[%emt 0:00:10]} 25. Bb4 {[%emt 0:00:08] A strong pair of Bishops.} Red8 {[%emt 0:00:03]} 26. Rxd8+ {[%emt 0:01:24]} Rxd8 {[%emt 0:00:03][%cal Rd8d1] [#]} 27. h4 {[%emt 0:00:05]} (27. Bxa5 $2 Rd1#) 27... Nc4 {[%emt 0:00:08]} (27... Bd5 $1 $11) 28. Rxb7 $16 {[%emt 0:00:02]} a5 {[%emt 0:00:05]} 29. Be7 {[%emt 0:00:02]} Rd1+ {[%emt 0:00:03]} 30. Kh2 {[%emt 0:00:01] Intending Rb8+ and mate.} f5 {[%emt 0:00:03]} 31. Bf3 {[%emt 0:00:05]} Ra1 {[%emt 0:00:06][%mdl 8192] [#]} (31... Rf1 $16 {keeps fighting.}) 32. Bh5 $1 $18 {[%emt 0:00:20] Threatens to win with Bg6.} Nd2 {[%emt 0:00:15]} 33. Rb8+ {[%emt 0:00:22]} (33. Rb6 $142 g5 34. hxg5 (34. Rxe6 g4 $16) 34... hxg5 35. Bf6 (35. Rxe6 g4 $18) (35. Bxg5 Nf1+ 36. Kh1 Ng3+ {[%mdl 64] Discovered Attack (Double check)} 37. Kh2 Nf1+ 38. Kh3 Nd2 $11)) 33... Kh7 {[%emt 0:00:01] Strongly threatening ...Nf1+.} 34. Be2 {[%emt 0:00:03]} ({White must play} 34. Rb6 $18 g6 35. Bxg6+ {[%mdl 64] Decoy} (35. Rxe6 gxh5 36. Rxe5 Rxa4 $18) 35... Kxg6 36. Rxe6+ Kf7 37. Rxe5) 34... Rxa4 {[%emt 0:00:05]} 35. h5 {[%emt 0:00:01]} (35. Bd3 $14) 35... Bc4 $11 {[%emt 0:00:04]} 36. Bxc4 {[%emt 0:00:03]} Rxc4 {[%emt 0:00:02][%mdl 4096] Endgame KRB-KRN} 37. Rb7 {[%emt 0:00:01] Bf6 is the strong threat.} Kg8 {[%emt 0:00:02]} (37... Rxc3 $2 38. Bf6 Kg8 39. Rxg7+ (39. Bxe5 Rc5 $18) 39... Kf8 40. Ra7 $18 (40. Bxe5 Rc5 $16)) 38. Rb5 {[%emt 0:00:02]} (38. Bd6 $5 {[%cal Rd6e5]}) 38... a4 {[%emt 0:00:02]} 39. Rxe5 {[%emt 0:00:02]} Ne4 {[%emt 0:00:05]} (39... Re4 $11 40. Rd5 Rxe7 41. Rxd2 Ra7) 40. Rxf5 $16 {[%emt 0:00:01]} Nxc3 {[%emt 0:00:02]} 41. f3 {[%emt 0:00:02]} Rc7 {[%emt 0:00:01]} (41... Rc8 $16 {was called for.}) 42. Bb4 $18 {[%emt 0:00:03]} Na2 {[%emt 0:00:02]} (42... Ne2 $16 43. e4 Rb7) 43. Bd6 {[%emt 0:00:02]} Rc6 {[%emt 0:00:02]} (43... Rd7 $16) 44. Bc5 {[%emt 0:00:01]} (44. Rf8+ $142 Kh7 45. Be5) 44... Nc1 {[%emt 0:00:02]} 45. e4 {[%emt 0:00:02]} Nd3 {[%emt 0:00:01]} 46. Be7 {[%emt 0:00:03]} (46. Ba3 $142) 46... Rc7 {[%emt 0:00:03]} (46... Re6 $16) 47. Bd6 {[%emt 0:00:00]} Rc6 {[%emt 0:00:01]} 48. Rf8+ {[%emt 0:00:05]} (48. Rd5 $18 Ne1 49. Bg3) 48... Kh7 $16 {[%emt 0:00:01]} 49. e5 {[%emt 0:00:00][%cal Oe5e6] e6! would be deadly.} Ra6 $2 {[%emt 0:00:01][%mdl 8192]} (49... Nb2 $16 50. Ra8 Nc4) 50. Ba3 $2 {[%emt 0:00:04]} ({Only move:} 50. e6 $18 {e7 would kill now.} Rxd6 51. e7) 50... Nxe5 $11 {[%emt 0:00:01]} 51. Rb8 {[%emt 0:00:02]} Nc4 {[%emt 0:00:01]} 52. Bb4 {[%emt 0:00:03]} a3 {[%emt 0:00:01] And now ...a2 would win.} 53. Bc3 {[%emt 0:00:01]} a2 {[%emt 0:00:02]} 54. Rb7 {[%emt 0:00:00]} Kg8 {[%emt 0:00:05]} (54... a1=B $2 55. Rxg7+ Kh8 56. Rg6+ Bxc3 57. Rxa6 $18) 55. Rxg7+ {[%emt 0:00:02]} Kf8 {[%emt 0:00:01]} 56. Rc7 {[%emt 0:00:03]} Ne3 {[%emt 0:00:03]} (56... a1=B $2 57. Bxa1 Rxa1 58. Rxc4 $18) 57. Ba1 {[%emt 0:00:02]} Ra5 {[%emt 0:00:06]} (57... Rd6 $11 {remains equal.}) 58. g4 $16 {[%emt 0:00:00]} Rb5 $2 {[%emt 0:00:02][%mdl 8192]} (58... Ra3 $16 {is a better chance.}) 59. Ra7 {[%emt 0:00:03]} Rb1 {[%emt 0:00:05] Weighted Error Value: White=0.40/Black=0.51} (59... Nf1+ $2 60. Kg2 Ne3+ 61. Kg3 $18) 1-0

[Event "Alef Super Stars Blitz 2023"]
[Site "Almamsha"]
[Date "2023.12.06"]
[Round "8.2"]
[White "Nihal Sarin"]
[Black "Yu, Yangyi"]
[Result "1-0"]
[ECO "C54"]
[WhiteElo "2688"]
[BlackElo "2714"]
[Annotator "TA"]
[PlyCount "99"]
[EventDate "2023.11.27"]
[EventType "tourn"]
[EventCountry "UAE"]
[SourceTitle "playchess.com"]
[Source "ChessBase"]
[SourceQuality "1"]
[TimeControl "180+2"]

{[%evp 13,99,11,20,20,23,18,22,9,10,0,14,1,25,0,0,0,0,0,0,0,22,23,25,22,37,20,25,0,0,0,86,39,47,40,71,7,44,30,52,48,46,18,92,28,246,205,195,204,197,208,193,176,176,173,172,160,249,240,243,196,357,363,363,374,372,359,364,366,277,237,283,302,698,691,896,889,1221,700,677,607,892,886,1264,1224,1041,945,4790,3534]} 1. e4 {[%emt 0:00:01]} e5 {[%emt 0:00:01]} 2. Nf3 {[%emt 0:00:01]} Nc6 {[%emt 0:00:01]} 3. Bc4 {[%emt 0:00:01]} Nf6 {[%emt 0:00:01]} 4. d3 {[%emt 0:00:01]} Bc5 {[%emt 0:00:00]} 5. O-O {[%emt 0:00:03]} O-O {[%emt 0:00:02]} 6. h3 {[%emt 0:00:01]} d6 {[%emt 0:00:04]} 7. c3 {[%emt 0:00:01]} Bb6 {[%emt 0:00:04] 7...a5 gains popularity.} 8. Nbd2 {[%emt 0:00:07] C54: Giuoco Piano: 4 c3 Nf6, main lines with 5 d4 and 5 d3.} Ne7 {[%emt 0:00:04][%cal Bc6e7,Be7g6,Bg6e5,Be5f3][%mdl 32]} 9. Re1 {[%emt 0:00:02]} Ng6 {[%emt 0:00:01]} 10. d4 {[%emt 0:00:03] The position is equal.} c6 {[%emt 0:00:05]} 11. Bf1 {[%emt 0:00:02]} Re8 {[%emt 0:00:05]} 12. a4 $5 {[%emt 0:00:04][%mdl 4] [#] A promising side line.} a5 $146 {[%emt 0:00:00]} ({Predecessor:} 12... h6 13. Qc2 Bc7 14. dxe5 Nxe5 15. Nxe5 Rxe5 16. Nc4 Re6 17. Bf4 d5 18. Bxc7 Qxc7 19. exd5 Nxd5 {½-½ Bjerre,J (2601)-Kryvoruchko,Y (2683) Bundesliga 2122 2022 (6.3)}) 13. b3 {[%emt 0:00:16]} d5 {[%emt 0:00:06]} 14. dxe5 {[%emt 0:00:28]} Nxe5 {[%emt 0:00:02][%cal Oc8g4]} 15. exd5 {[%emt 0:00:05]} Nxf3+ {[%emt 0:00:02]} ({But not} 15... Qxd5 16. Nxe5 Rxe5 17. Rxe5 Qxe5 18. Nc4 $14) 16. Nxf3 {[%emt 0:00:01]} Rxe1 {[%emt 0:00:05]} 17. Qxe1 {[%emt 0:00:02] dxc6 is the strong threat.} Nxd5 {[%emt 0:00:05]} 18. Bg5 {[%emt 0:00:09]} Qf8 {[%emt 0:00:01]} 19. c4 {[%emt 0:00:04]} Nf6 {[%emt 0:00:19]} 20. Bxf6 {[%emt 0:00:03]} gxf6 {[%emt 0:00:01]} 21. Qc3 {[%emt 0:00:13]} Qg7 {[%emt 0:00:11]} (21... Qd6 $11 {remains equal.}) 22. c5 {[%emt 0:00:03]} (22. Re1 $16 {aiming for Re8+.} Be6 23. Nd4) 22... Bc7 $14 {[%emt 0:00:00]} 23. Re1 $36 {[%emt 0:00:11][%mdl 2048] White has some pressure.} Be6 {[%emt 0:00:09]} 24. Bc4 {[%emt 0:00:20]} (24. Nd4 $16) 24... Re8 {[%emt 0:01:31]} 25. Bxe6 {[%emt 0:00:47]} Rxe6 {[%emt 0:00:01]} 26. Rd1 {[%emt 0:00:07]} Qg6 {[%emt 0:00:08]} 27. Qd3 {[%emt 0:00:27]} Kg7 {[%emt 0:00:27]} (27... Qxd3 $11 {keeps the balance.} 28. Rxd3 Kf8) 28. g3 {[%emt 0:00:09]} ({White should try} 28. Qxg6+ $16 hxg6 29. Rd7) 28... Qe4 $2 {[%emt 0:00:14] [#] Loses the game.} (28... Bb8 $11) 29. Qxe4 {[%emt 0:00:03]} Rxe4 $18 {[%emt 0:00:01][%mdl 4096] Endgame KRB-KRN} 30. Rd7 {[%emt 0:00:01]} Be5 {[%emt 0:00:02]} 31. Rxb7 {[%emt 0:00:02]} Bc3 {[%emt 0:00:07]} 32. Rb6 {[%emt 0:00:02]} Re6 {[%emt 0:00:01]} 33. Nh4 {[%emt 0:00:03]} Bb4 {[%emt 0:00:02]} 34. Ra6 {[%emt 0:00:02]} Re1+ {[%emt 0:00:04]} (34... Re5 $16) 35. Kg2 {[%emt 0:00:01]} Bxc5 {[%emt 0:00:01]} 36. Rxa5 {[%emt 0:00:02]} ({Don't do} 36. Rxc6 $6 Bb4 37. Nf5+ Kg6) 36... Bb4 $2 {[%emt 0:00:02]} (36... Rc1 {was called for.} 37. g4 Rc2 38. Nf5+ Kg6) 37. Ra6 {[%emt 0:00:01]} Rc1 {[%emt 0:00:01]} 38. Rb6 {[%emt 0:00:02]} c5 {[%emt 0:00:03]} 39. Nf5+ {[%emt 0:00:01]} Kg6 {[%emt 0:00:00]} 40. Ne7+ {[%emt 0:00:01]} Kg7 {[%emt 0:00:01]} 41. Nd5 {[%emt 0:00:06]} Ba5 {[%emt 0:00:06]} 42. Rc6 {[%emt 0:00:02] [#] b4 would be deadly.} Rc2 $2 {[%emt 0:00:02]} (42... Rb1 43. Rxc5 Be1) 43. b4 {[%emt 0:00:01] White is clearly winning.} Bd8 {[%emt 0:00:02]} 44. Rxc5 {[%emt 0:00:02]} Ra2 {[%emt 0:00:01]} 45. a5 {[%emt 0:00:00][%cal Ba4a5,Ba5a6][%mdl 32]} f5 {[%emt 0:00:02]} 46. h4 {[%emt 0:00:03]} h6 {[%emt 0:00:01]} 47. Rc8 {[%emt 0:00:01]} Bf6 {[%emt 0:00:03]} 48. Nxf6 {[%emt 0:00:02]} Kxf6 {[%emt 0:00:06]} 49. Rc6+ {[%emt 0:00:01]} Kg7 {[%emt 0:00:00]} 50. a6 {[%emt 0:00:01] Weighted Error Value: White=0.26 (precise) /Black=0.43} 1-0

[Event "Alef Super Stars Blitz 2023"]
[Site "Almamsha"]
[Date "2023.12.06"]
[Round "9.1"]
[White "Yu, Yangyi"]
[Black "Salem, A.R. Saleh"]
[Result "1-0"]
[ECO "C84"]
[WhiteElo "2714"]
[BlackElo "2639"]
[Annotator "TA"]
[PlyCount "101"]
[EventDate "2023.11.27"]
[EventType "tourn"]
[EventCountry "UAE"]
[SourceTitle "playchess.com"]
[Source "ChessBase"]
[SourceQuality "1"]
[TimeControl "180+2"]

{[%evp 15,101,19,8,8,6,8,16,25,18,14,22,19,14,10,32,11,47,7,29,-28,-37,-28,-31,-34,0,0,14,5,10,0,0,0,0,0,0,0,0,0,0,0,0,0,0,-30,-29,-28,-33,-41,-21,-54,-6,-14,-13,-6,-5,-4,-5,-6,-15,-5,-5,-5,-5,-5,0,0,0,-2,0,0,0,0,0,0,29992,29991,29991,29988,29988,29989,29989,12844,29996,12846,29996,29997,29997,29998]} 1. e4 {[%emt 0:00:02]} e5 {[%emt 0:00:00]} 2. Nf3 {[%emt 0:00:01]} Nc6 {[%emt 0:00:01]} 3. Bb5 {[%emt 0:00:01]} a6 {[%emt 0:00:00]} 4. Ba4 {[%emt 0:00:00]} Nf6 {[%emt 0:00:01]} 5. O-O {[%emt 0:00:02]} Be7 {[%emt 0:00:00]} 6. d3 {[%emt 0:00:01]} b5 {[%emt 0:00:01]} 7. Bb3 {[%emt 0:00:00]} d6 {[%emt 0:00:00]} 8. a4 {[%emt 0:00:02]} Bd7 {[%emt 0:00:01] 8...Bd7 is better than 8...b4.} 9. Be3 {[%emt 0:00:01] C84: Closed Ruy Lopez: Unusual White 6th moves.} Na5 {[%emt 0:00:00]} 10. Ba2 {[%emt 0:00:00]} bxa4 {[%emt 0:00:00]} 11. Nc3 {[%emt 0:00:04] The position is equal.} O-O {[%emt 0:00:10]} 12. Bb1 {[%emt 0:00:02]} c5 {[%emt 0:00:07]} 13. Nxa4 {[%emt 0:00:02]} Rb8 {[%emt 0:00:01]} 14. h3 {[%emt 0:00:17] [#]} h6 $146 {[%emt 0:00:05]} ({Predecessor:} 14... Nc6 15. Bc1 c4 16. Nc3 cxd3 17. cxd3 Nb4 18. d4 Qc7 19. Bg5 h6 20. Bh4 Rfe8 {½-½ Safarli,E (2694)-Tomashevsky,E (2722) EU-Cup 32nd Novi Sad 2016 (4.4)}) 15. Re1 {[%emt 0:00:04]} (15. Bd2 $5 {[%cal Ra4c5]}) 15... Re8 {[%emt 0:00:02]} 16. Qc1 {[%emt 0:00:04]} Nc6 {[%emt 0:00:04]} 17. Ba2 {[%emt 0:00:11]} (17. Nd2 $142) 17... Nd4 $11 {[%emt 0:00:04]} 18. Bxd4 {[%emt 0:00:02]} cxd4 {[%emt 0:00:04]} (18... Bxa4 19. Bxe5 dxe5 20. Nxe5 $16) (18... exd4 19. Bc4 $11) 19. Bc4 {[%emt 0:00:03]} a5 {[%emt 0:00:02]} (19... Nh5 $15) 20. c3 {[%emt 0:00:02]} dxc3 {[%emt 0:00:24]} 21. Nxc3 {[%emt 0:00:01]} Qb6 {[%emt 0:00:04]} 22. Ra2 {[%emt 0:00:12]} Rec8 {[%emt 0:00:03]} 23. Qd2 {[%emt 0:00:06]} Bd8 {[%emt 0:00:26]} 24. Rea1 {[%emt 0:00:10]} Qb4 {[%emt 0:00:12]} 25. Ne1 {[%emt 0:00:11]} Qb7 {[%emt 0:00:22]} 26. Nc2 {[%emt 0:00:05]} Bb6 {[%emt 0:00:02]} 27. Ne3 {[%emt 0:00:22]} Be6 {[%emt 0:00:01]} 28. Ned5 {[%emt 0:00:13]} Nxd5 {[%emt 0:00:09]} 29. Bxd5 {[%emt 0:00:03]} Qe7 {[%emt 0:00:06]} 30. Qe2 {[%emt 0:00:11]} Qf6 {[%emt 0:00:12]} 31. Rf1 {[%emt 0:00:17]} Kh7 {[%emt 0:00:44]} 32. Kh1 {[%emt 0:00:05]} Bd4 {[%emt 0:00:07]} (32... Qd8 $15) 33. Rxa5 {[%emt 0:00:21] [#]} (33. Bxe6 {with more complications.} Qxe6 34. Rxa5 Rxb2 35. Qxb2 Bxc3 36. Qa2) 33... Rxb2 $1 {[%emt 0:00:04][%mdl 64] Decoy} 34. Qxb2 {[%emt 0:00:02]} Bxc3 {[%emt 0:00:01]} 35. Bxe6 {[%emt 0:00:23]} Qxe6 {[%emt 0:00:10]} 36. Qa2 {[%emt 0:00:02] And now Qxe6 would win.} Bxa5 {[%emt 0:00:01]} 37. Qxa5 {[%emt 0:00:01][%mdl 4096] Endgame KQR-KQR} Rc2 {[%emt 0:00:05]} 38. Kg1 {[%emt 0:00:12]} Qb3 {[%emt 0:00:09]} 39. Qa6 {[%emt 0:00:01]} Qb4 {[%emt 0:00:04]} 40. Qa7 {[%emt 0:00:05]} Qb3 {[%emt 0:00:07]} 41. Qa6 {[%emt 0:00:05]} Qb4 {[%emt 0:00:02]} 42. Qa7 {[%emt 0:00:01]} Kg6 {[%emt 0:00:03]} 43. Qd7 {[%emt 0:00:03][%csl Ge4][%cal Rd7f5]} f6 $1 {[%emt 0:00:02]} 44. Ra1 {[%emt 0:00:07] Threatening mate with Ra7.} h5 $2 {[%emt 0:00:04][%mdl 8192] [#]} (44... Ra2 $11 45. Rc1 (45. Rxa2 Qb1+ 46. Kh2 Qxa2 $11) (45. Qf5+ Kf7 $11) 45... Rc2 46. Qg4+ (46. Rxc2 Qb1+ 47. Kh2 Qxc2 $11) (46. Qf5+ Kf7 $11) 46... Kf7 47. Rxc2 (47. Qd7+ Kg6 $11) 47... Qb1+ 48. Kh2 Qxc2) 45. Qf5+ {[%emt 0:00:03]} Kh6 {[%emt 0:00:00]} 46. g4 {[%emt 0:00:02]} hxg4 {[%emt 0:00:03]} 47. hxg4 {[%emt 0:00:01][%csl Gg4][%cal Rf5h5]} g6 {[%emt 0:00:02]} 48. Qxf6 {[%emt 0:00:01]} (48. g5+ $142 Kh5 49. Qh3+ (49. gxf6+ $2 {too greedy.} gxf5 50. Rf1 fxe4 $19) 49... Kxg5 50. Qe3+ Kh5 51. Kg2 Rxf2+ 52. Qxf2 Qb2 53. Qxb2) 48... Qd2 {[%emt 0:00:02]} 49. Kg2 {[%emt 0:00:02]} (49. Qxd6 $2 {is a self mate.} Qxf2+ 50. Kh1 Qh2#) (49. Qh4+ $142 Kg7 50. Ra7+ Rc7 51. Rxc7+ Kg8 52. Qd8#) 49... Rc1 {[%emt 0:00:01]} 50. Qh4+ {[%emt 0:00:03]} Kg7 {[%emt 0:00:01]} 51. Ra7+ {[%emt 0:00:01] Weighted Error Value: White=0.06 (flawless) /Black=0.46} 1-0

[Event "Alef Super Stars Blitz 2023"]
[Site "Almamsha"]
[Date "2023.12.06"]
[Round "10.1"]
[White "Salem, A.R. Saleh"]
[Black "Nihal Sarin"]
[Result "1/2-1/2"]
[ECO "D15"]
[WhiteElo "2639"]
[BlackElo "2688"]
[Annotator "TA"]
[PlyCount "62"]
[EventDate "2023.11.27"]
[EventType "tourn"]
[EventCountry "UAE"]
[SourceTitle "playchess.com"]
[Source "ChessBase"]
[SourceQuality "1"]
[TimeControl "180+2"]

{[%evp 9,62,5,34,35,35,35,50,36,36,31,31,26,35,35,29,29,34,24,31,25,29,33,38,28,17,1,2,0,0,0,15,5,7,-12,-10,-17,0,-6,-8,-8,-8,-8,-8,-8,-8,-8,0,-8,0,0,0,-6,0,0,0]} 1. d4 {[%emt 0:00:04]} d5 {[%emt 0:00:04]} 2. c4 {[%emt 0:00:01]} c6 {[%emt 0:00:01]} 3. Nf3 {[%emt 0:00:01]} Nf6 {[%emt 0:00:00]} 4. Nc3 {[%emt 0:00:00]} a6 {[%emt 0:00:06]} 5. g3 {[%emt 0:00:03]} Bf5 {[%emt 0:00:10]} 6. Bg2 {[%emt 0:00:01] D15: Slav Defence: 4 Nc3 a6 and gambit lines after 4 Nc3 dxc4.} e6 {[%emt 0:00:01]} 7. O-O {[%emt 0:00:01]} h6 {[%emt 0:00:01] 7...Be7 is the modern continuation.} 8. Nd2 {[%emt 0:00:04] White is slightly better.} Be7 {[%emt 0:00:09]} 9. e4 {[%emt 0:00:03]} dxe4 {[%emt 0:00:01]} 10. Ndxe4 {[%emt 0:00:01]} O-O {[%emt 0:00:02]} 11. Bf4 {[%emt 0:00:28]} Nxe4 {[%emt 0:00:08]} 12. Nxe4 {[%emt 0:00:02]} Bxe4 {[%emt 0:00:20]} 13. Bxe4 {[%emt 0:00:01]} Nd7 {[%emt 0:00:01]} 14. Qb3 {[%emt 0:00:05]} Nf6 {[%emt 0:00:02]} 15. Bg2 {[%emt 0:00:09]} Qd7 {[%emt 0:00:01] [#]} 16. Rad1 $146 {[%emt 0:00:10]} ({Predecessor:} 16. Rfd1 b5 17. Rac1 Rfc8 18. Be5 bxc4 19. Rxc4 Nd5 20. Qf3 a5 21. b3 Ra7 22. h4 {1-0 Zhou,J (2609)-Kazhgaleyev,M (2595) Asia-chT 17th 2012 (7.2)}) 16... b5 {[%emt 0:00:15]} 17. Qf3 {[%emt 0:00:34] The position is equal.} bxc4 {[%emt 0:00:15]} 18. Qxc6 {[%emt 0:00:00]} Qxc6 {[%emt 0:00:01]} 19. Bxc6 {[%emt 0:00:02] A strong pair of Bishops.} Ra7 {[%emt 0:00:01]} (19... Rad8 $5 {[%cal Rf6d5]}) 20. Rc1 {[%emt 0:00:24]} Nd5 {[%emt 0:00:02]} 21. Bd2 {[%emt 0:00:13]} Rb8 {[%emt 0:00:05]} 22. Rc2 {[%emt 0:00:39]} Bf6 {[%emt 0:00:08]} (22... Rb6 $5 {[%cal Rb6c6]} 23. Ba4 Bg5 $11) 23. Rb1 {[%emt 0:00:32]} c3 {[%emt 0:00:54]} 24. Bxc3 {[%emt 0:00:08]} Nxc3 {[%emt 0:00:02]} 25. Rxc3 {[%emt 0:00:00]} Bxd4 {[%emt 0:00:01]} 26. Rc2 {[%emt 0:00:02]} a5 {[%emt 0:00:07]} 27. b3 {[%emt 0:00:02]} g6 {[%emt 0:00:14]} 28. Rd1 {[%emt 0:00:01]} e5 {[%emt 0:00:08]} 29. Bd5 {[%emt 0:00:03]} Kg7 {[%emt 0:00:01]} (29... Rd8 $5 30. Bf3 $8 Rad7 $11) 30. Rc6 {[%emt 0:00:01]} h5 {[%emt 0:00:10]} (30... Rd7 $5 31. Bf3 $8 a4 $15) 31. Kg2 {[%emt 0:00:03]} a4 {[%emt 0:00:02] Weighted Error Value: White=0.04 (flawless) /Black=0.04 (flawless)} 1/2-1/2